bitfinex/quotes_BTCUSD_20220307
["timestamp","ask_amount","ask_price","bid_price","bid_amount"]
[1646696346471,0.1241121,38345.0,38339.0,0.21006599]
[1646696346673,0.700878,38344.0,38341.0,0.00076265]
[1646696346871,0.400878,38342.0,38341.0,0.00076265]
[1646696347471,0.77631023,38342.0,38338.0,0.27530099]
[1646696347874,1.07631023,38342.0,38340.0,0.00019066]
[1646696348075,0.8770901,38341.0,38340.0,0.00019066]
[1646696348377,0.9032801,38341.0,38340.0,0.00019066]
[1646696348575,1.0532801,38341.0,38340.0,6.6e-07]
[1646696348775,0.02619,38340.0,38331.0,0.21006599]
[1646696348973,0.02619,38340.0,38330.0,0.21006599]
[1646696348974,0.29159704,38332.0,38330.0,0.21006599]
[1646696349275,0.29159704,38332.0,38329.0,0.21006599]
[1646696349276,1.14562193,38331.0,38329.0,0.21006599]
[1646696349474,0.84562193,38331.0,38329.0,0.21006599]
[1646696350532,0.400878,38330.0,38329.0,0.21006599]
[1646696350734,0.1241121,38335.0,38329.0,0.21006599]
[1646696350934,0.1241121,38335.0,38331.0,0.21048883]
[1646696351137,0.1241121,38335.0,38330.0,0.21048883]
[1646696351334,0.1241121,38335.0,38329.0,0.21048883]
[1646696351933,0.1705304,38331.0,38329.0,0.21048883]
[1646696352133,0.1241121,38335.0,38329.0,0.21048883]
[1646696352334,0.1241121,38335.0,38328.0,0.065251]
[1646696352532,0.1241121,38335.0,38328.0,0.0654616]
[1646696353135,0.17180024,38332.0,38328.0,0.0002106]
[1646696353333,0.10598449,38332.0,38328.0,0.0654606]
[1646696353533,0.10598449,38332.0,38328.0,0.06525]
[1646696353873,0.10598449,38332.0,38328.0,0.0002106]
[1646696354071,0.1241121,38335.0,38328.0,0.0002106]
[1646696354670,0.1241121,38335.0,38326.0,0.078276]
[1646696354870,0.1241121,38335.0,38334.0,0.0999]
[1646696355071,0.5249901,38335.0,38334.0,0.0999]
[1646696355372,0.1241121,38335.0,38331.0,0.065245]
[1646696355571,0.1241121,38335.0,38330.0,0.0002106]
[1646696355971,0.19604088,38329.0,38326.0,0.01303]
[1646696357274,0.400878,38328.0,38323.0,0.26169133]
[1646696357474,0.19604088,38329.0,38326.0,0.00017917]
[1646696357475,0.5249901,38327.0,38326.0,0.00017917]
[1646696357721,0.715081,38327.0,38326.0,0.00017917]
[1646696358317,0.715081,38327.0,38320.0,0.21049366]
[1646696358517,0.1717336,38321.0,38320.0,0.21049366]
[1646696359020,0.1717336,38321.0,38319.0,0.21121046]
[1646696359216,0.1717336,38321.0,38319.0,0.26121046]
[1646696359419,0.1241121,38327.0,38319.0,0.26121046]
[1646696359619,0.17274206,38328.0,38320.0,0.34100866]
[1646696360020,0.17274206,38328.0,38320.0,0.130515]
[1646696360219,0.1241121,38329.0,38320.0,0.130515]
[1646696360420,0.31397842,38329.0,38320.0,0.34100866]
[1646696360720,0.58319684,38329.0,38320.0,0.34100866]
[1646696360920,0.58319684,38329.0,38320.0,0.195773]
[1646696361121,0.58319684,38329.0,38322.0,0.065257]
[1646696361368,0.744192,38329.0,38323.0,0.00021049]
[1646696361966,0.744192,38329.0,38322.0,0.065257]
[1646696362165,0.744192,38329.0,38324.0,0.00021048]
[1646696362365,0.400878,38328.0,38324.0,0.00021048]
[1646696363165,0.400878,38328.0,38322.0,0.065257]
[1646696363364,0.47497358,38329.0,38324.0,0.00021048]
[1646696363567,0.400878,38328.0,38324.0,0.06546748]
[1646696363767,0.33844377,38336.0,38324.0,0.06546748]
[1646696363768,0.1241121,38336.0,38327.0,0.0999]
[1646696364168,0.1241121,38336.0,38327.0,0.280391]
[1646696364566,0.17883965,38329.0,38327.0,0.280391]
[1646696364767,0.17883965,38329.0,38327.0,0.180491]
[1646696365221,0.17883965,38329.0,38328.0,0.0999]
[1646696365416,0.57971765,38329.0,38328.0,0.0999]
[1646696365616,0.80983822,38329.0,38328.0,0.0999]
[1646696365814,0.40896022,38329.0,38324.0,0.00079426]
[1646696366215,0.40896022,38329.0,38327.0,0.00019854]
[1646696366415,0.17883965,38329.0,38327.0,0.00019854]
[1646696366818,0.17883965,38329.0,38323.0,0.130504]
[1646696367017,0.17883965,38329.0,38326.0,0.00019855]
[1646696367216,0.17883965,38329.0,38328.0,0.0999]
[1646696367615,0.17883965,38329.0,38326.0,0.00019855]
[1646696368016,0.22454459,38327.0,38323.0,0.12570255]
[1646696368215,0.22454459,38327.0,38326.0,0.00021061]
[1646696368417,0.1939753,38327.0,38326.0,0.00021061]
[1646696369268,0.1939753,38327.0,38321.0,0.002]
[1646696369468,0.26819063,38322.0,38321.0,0.002]
[1646696369869,0.74567863,38322.0,38321.0,0.002]
[1646696370468,0.74567863,38322.0,38314.0,0.101275]
[1646696370766,0.18504393,38319.0,38314.0,0.101275]
[1646696371467,0.45662502,38322.0,38314.0,0.101275]
[1646696371869,0.45662502,38322.0,38315.0,0.00021065]
[1646696372468,0.61733239,38322.0,38315.0,0.00021065]
[1646696372718,0.65,38328.0,38315.0,0.30021065]
[1646696372922,0.65,38328.0,38317.0,0.06527]
[1646696373317,0.65,38328.0,38317.0,0.06548064]
[1646696373718,0.65,38328.0,38318.0,0.26718101]
[1646696373918,0.65,38328.0,38321.0,0.065256]
[1646696374520,0.65,38328.0,38323.0,0.00021062]
[1646696374918,0.21647968,38324.0,38323.0,0.00021062]
[1646696375118,0.14473734,38324.0,38323.0,0.00021062]
[1646696375518,0.14473734,38324.0,38321.0,0.065256]
[1646696375719,0.65,38328.0,38322.0,0.00021063]
[1646696376772,0.65,38328.0,38323.0,0.065253]
[1646696376976,0.65,38328.0,38324.0,0.065253]
[1646696378276,0.65,38328.0,38324.0,0.06542822]
[1646696378473,0.2074226,38330.0,38324.0,0.06542822]
[1646696378778,0.5083121,38335.0,38324.0,0.06542822]
[1646696379176,0.5083121,38335.0,38324.0,0.065253]
[1646696379375,0.5083121,38335.0,38327.0,0.06525]
[1646696379574,0.1241121,38335.0,38327.0,0.06525]
[1646696379774,0.28955295,38335.0,38327.0,0.06525]
[1646696380232,0.16544085,38335.0,38327.0,0.06525]
[1646696380830,0.40679,38340.0,38324.0,0.23068483]
[1646696380831,0.07138622,38342.0,38331.0,0.06524]
[1646696381036,0.07138622,38342.0,38332.0,0.3]
[1646696381228,0.07138622,38342.0,38338.0,0.22087842]
[1646696381457,0.07138622,38342.0,38335.0,0.02619]
[1646696381629,0.07138622,38342.0,38335.0,0.32619]
[1646696381828,0.07138622,38342.0,38339.0,0.130437]
[1646696382028,0.18190409,38348.0,38339.0,0.180437]
[1646696382228,0.18190409,38348.0,38340.0,0.065223]
[1646696382530,0.18190409,38348.0,38342.0,0.065223]
[1646696383866,0.17355892,38348.0,38342.0,0.065223]
[1646696385467,0.16523958,38348.0,38342.0,0.065223]
[1646696386972,2.00732284,38353.0,38343.0,0.065221]
[1646696387175,2.00732284,38353.0,38346.0,0.065219]
[1646696387372,0.17580594,38343.0,38342.0,0.35]
[1646696387622,0.17580594,38343.0,38341.0,0.05]
[1646696388021,0.17580594,38343.0,38342.0,0.3]
[1646696388822,0.16771581,38343.0,38342.0,0.3]
[1646696389022,0.16771581,38343.0,38342.0,0.365219]
[1646696389223,0.16771581,38343.0,38342.0,0.065219]
[1646696392169,0.16771581,38343.0,38342.0,0.064919]
[1646696392769,0.16771581,38343.0,38342.0,0.064812]
[1646696393973,0.16771581,38343.0,38341.0,0.230438]
[1646696394174,0.16771581,38343.0,38341.0,0.05]
[1646696394381,0.16771581,38343.0,38337.0,0.185462]
[1646696394575,0.16771581,38343.0,38340.0,0.060233]
[1646696395728,0.18430763,38342.0,38340.0,0.060233]
[1646696396928,0.16771581,38343.0,38340.0,0.060233]
[1646696397927,0.16771581,38343.0,38340.0,0.360233]
[1646696398527,0.16771581,38343.0,38342.0,0.13044]
[1646696398726,0.16771581,38343.0,38342.0,0.18044]
[1646696401073,0.16771581,38343.0,38342.0,0.17991249]
[1646696403327,0.374578,38343.0,38342.0,0.17991249]
[1646696403533,0.674578,38343.0,38338.0,0.065236]
[1646696403736,0.400878,38342.0,38337.0,0.003]
[1646696403931,0.400878,38340.0,38337.0,0.003]
[1646696404127,0.400878,38339.0,38337.0,0.003]
[1646696404327,0.3,38338.0,38337.0,0.003]
[1646696404528,0.88789159,38338.0,38329.0,0.230389]
[1646696404729,0.18515772,38330.0,38329.0,0.230389]
[1646696405127,0.03517722,38330.0,38329.0,0.130489]
[1646696405926,0.03517722,38330.0,38329.0,0.13041322]
[1646696406591,0.33517722,38330.0,38326.0,0.130499]
[1646696406790,0.33517722,38330.0,38322.0,0.01303]
[1646696406791,0.400878,38329.0,38322.0,0.078294]
[1646696406991,0.36136722,38330.0,38322.0,0.078294]
[1646696406992,0.06136722,38330.0,38322.0,0.065264]
[1646696407194,0.06136722,38330.0,38324.0,0.00013012]
[1646696407392,0.727068,38329.0,38324.0,0.00013012]
[1646696407594,0.1241121,38327.0,38324.0,0.00013012]
[1646696407794,0.6159123,38326.0,38324.0,0.00013012]
[1646696408192,0.7158123,38326.0,38317.0,0.21028136]
[1646696408392,0.18100174,38323.0,38317.0,0.21028136]
[1646696408592,0.18100174,38323.0,38318.0,0.065269]
[1646696409594,0.43148884,38323.0,38319.0,0.00021057]
[1646696409894,0.2504871,38323.0,38319.0,0.00021057]
[1646696410524,2.67973125,38325.0,38319.0,0.00021057]
[1646696410726,2.67973125,38325.0,38318.0,0.065269]
[1646696410926,0.1241121,38327.0,38319.0,0.00021056]
[1646696411131,0.2761121,38332.0,38319.0,0.13073456]
[1646696411329,0.1241121,38332.0,38321.0,0.21028136]
[1646696411528,0.1241121,38332.0,38322.0,0.01303]
[1646696411926,0.20848413,38331.0,38322.0,0.01303]
[1646696412127,0.19889857,38327.0,38324.0,0.00019837]
[1646696413127,0.19889857,38327.0,38323.0,0.065247]
[1646696413329,0.19889857,38327.0,38324.0,0.00019837]
[1646696414278,0.19889857,38327.0,38323.0,0.065247]
[1646696414478,0.19889857,38327.0,38324.0,0.00019837]
[1646696415479,0.50848413,38331.0,38324.0,0.00019837]
[1646696415480,0.55727466,38330.0,38329.0,0.58349779]
[1646696415878,0.15639666,38330.0,38329.0,0.58349779]
[1646696416180,0.55727466,38330.0,38329.0,0.58349779]
[1646696416781,0.15639666,38330.0,38329.0,0.58349779]
[1646696417182,0.400878,38330.0,38329.0,0.58349779]
[1646696417381,0.400878,38330.0,38329.0,0.01685004]
[1646696417382,0.005,38330.0,38329.0,0.01685004]
[1646696418626,0.18021325,38331.0,38329.0,0.01685004]
[1646696419229,0.400878,38330.0,38329.0,0.01685004]
[1646696419428,0.16099496,38330.0,38329.0,0.01685004]
[1646696420027,0.16099496,38330.0,38329.0,0.01650008]
[1646696421786,0.07572725,38332.0,38329.0,0.01650008]
[1646696421988,0.1,38338.0,38329.0,0.01650008]
[1646696422382,0.10191725,38339.0,38329.0,0.01650008]
[1646696422582,0.18349103,38336.0,38329.0,0.01650008]
[1646696422782,0.46111791,38336.0,38329.0,0.01650008]
[1646696422980,0.19769416,38333.0,38329.0,0.01650008]
[1646696423581,0.19769416,38333.0,38330.0,0.130487]
[1646696424384,0.46111791,38336.0,38330.0,0.130487]
[1646696424385,0.27762688,38336.0,38330.0,0.130487]
[1646696424881,0.1,38337.0,38330.0,0.130487]
[1646696425330,0.29030478,38337.0,38330.0,0.130487]
[1646696425531,0.19676718,38335.0,38330.0,0.130487]
[1646696426031,0.19676718,38335.0,38329.0,0.14698808]
[1646696426430,0.22295718,38335.0,38329.0,0.14698808]
[1646696426631,0.26304643,38335.0,38329.0,0.14698808]
[1646696427533,0.22395718,38335.0,38329.0,0.14698808]
[1646696428332,0.22395718,38335.0,38329.0,0.24688808]
[1646696428981,0.16764199,38331.0,38329.0,0.24688808]
[1646696429179,0.16764199,38331.0,38329.0,0.11640008]
[1646696429381,0.400878,38330.0,38329.0,0.01650008]
[1646696429982,0.400878,38330.0,38329.0,0.11640008]
[1646696429983,0.20744379,38330.0,38329.0,0.11640008]
[1646696430181,0.20744379,38330.0,38329.0,0.01650008]
[1646696431381,0.20744379,38330.0,38329.0,0.11640008]
[1646696431582,0.21344379,38330.0,38329.0,0.01650008]
[1646696432837,0.20744379,38330.0,38329.0,0.01650008]
[1646696433035,0.07572725,38331.0,38329.0,0.01650008]
[1646696433236,0.400878,38330.0,38329.0,0.01650008]
[1646696433933,0.400878,38330.0,38329.0,0.11640008]
[1646696434839,0.07572725,38331.0,38329.0,0.11640008]
[1646696435036,0.07572725,38331.0,38329.0,0.01650008]
[1646696435238,0.28761381,38341.0,38329.0,0.06650008]
[1646696435436,0.7835582,38346.0,38329.0,0.06650008]
[1646696435437,0.73726469,38346.0,38334.0,0.20577303]
[1646696435637,0.48198656,38349.0,38336.0,0.065222]
[1646696435837,0.33278656,38352.0,38336.0,0.065222]
[1646696436037,0.15906314,38350.0,38336.0,0.202632]
[1646696436239,0.0024,38350.0,38338.0,0.02619]
[1646696436498,0.0024,38350.0,38338.0,0.0521]
[1646696436701,0.0024,38350.0,38341.0,0.16680629]
[1646696437097,0.0024,38350.0,38341.0,0.26680629]
[1646696437699,0.0024,38350.0,38342.0,0.3]
[1646696438199,0.0024,38350.0,38342.0,0.46521]
[1646696440231,0.0024,38350.0,38342.0,0.16521]
[1646696440423,0.16760296,38343.0,38342.0,0.06521]
[1646696440826,0.16760296,38343.0,38341.0,0.03862032]
[1646696446881,0.16729296,38343.0,38341.0,0.03862032]
[1646696447286,0.16729296,38343.0,38342.0,0.3]
[1646696447488,0.16729296,38343.0,38342.0,0.3521]
[1646696447787,0.0024,38350.0,38344.0,0.065202]
[1646696447985,0.0024,38350.0,38345.0,0.3521]
[1646696448182,0.0024,38350.0,38345.0,0.4521]
[1646696448585,0.0024,38350.0,38345.0,0.1521]
[1646696448985,0.29458213,38350.0,38345.0,0.1521]
[1646696449184,0.29458213,38350.0,38345.0,0.0521]
[1646696449386,0.0650742,38346.0,38336.0,0.3657]
[1646696449588,0.0650742,38346.0,38340.0,0.002]
[1646696449589,0.427068,38345.0,38340.0,0.002]
[1646696449788,0.1241121,38341.0,38340.0,0.002]
[1646696449987,0.5511801,38341.0,38340.0,0.002]
[1646696450191,0.02619,38340.0,38324.0,0.21124706]
[1646696450494,0.76665124,38330.0,38329.0,0.11640008]
[1646696450691,0.86722409,38330.0,38329.0,0.11640008]
[1646696450886,0.99341409,38330.0,38329.0,0.01650008]
[1646696451289,1.28386675,38330.0,38329.0,0.01650008]
[1646696451489,1.33896675,38330.0,38329.0,0.01650008]
[1646696451689,1.21485465,38330.0,38329.0,0.11640008]
[1646696451891,1.40451093,38330.0,38329.0,0.11640008]
[1646696452089,1.40451093,38330.0,38329.0,0.01650008]
[1646696452288,0.85,38329.0,38318.0,0.01303]
[1646696452493,0.466151,38328.0,38318.0,0.01303]
[1646696452688,0.1191121,38326.0,38318.0,0.01303]
[1646696453288,0.18690359,38323.0,38315.0,0.01303]
[1646696453491,0.20836456,38320.0,38315.0,0.01303]
[1646696453890,0.20836456,38320.0,38316.0,0.065269]
[1646696454090,2.11134366,38321.0,38316.0,0.065269]
[1646696454491,2.11134366,38321.0,38320.0,0.0999]
[1646696454695,2.11134366,38321.0,38314.0,0.266539]
[1646696454892,2.11134366,38321.0,38314.0,0.279579]
[1646696455328,2.11134366,38321.0,38314.0,0.229579]
[1646696455530,2.11134366,38321.0,38320.0,0.065266]
[1646696455735,2.11134366,38321.0,38314.0,0.229579]
[1646696455929,2.11134366,38321.0,38320.0,0.0999]
[1646696456429,2.11134366,38321.0,38316.0,0.00020426]
[1646696456929,2.11134366,38321.0,38314.0,0.229579]
[1646696457131,0.18690359,38323.0,38317.0,0.00020425]
[1646696457530,0.18690359,38323.0,38319.0,0.065268]
[1646696458430,0.18690359,38323.0,38319.0,0.06547759]
[1646696459277,0.18690359,38323.0,38319.0,0.065268]
[1646696459478,0.400878,38322.0,38319.0,0.06547759]
[1646696459680,0.18690359,38323.0,38319.0,0.06547759]
[1646696460481,0.18690359,38323.0,38319.0,0.065268]
[1646696460884,0.18690359,38323.0,38319.0,0.06546542]
[1646696461783,0.18690359,38323.0,38322.0,0.0999]
[1646696461982,0.16527373,38324.0,38319.0,0.00018857]
[1646696462828,0.400878,38323.0,38319.0,0.00018857]
[1646696463131,0.400878,38323.0,38320.0,0.00018857]
[1646696463330,0.36274083,38324.0,38321.0,0.0999]
[1646696463535,0.400878,38323.0,38321.0,0.10141913]
[1646696463933,0.400878,38323.0,38321.0,0.00151913]
[1646696464132,0.400878,38323.0,38322.0,0.0999]
[1646696464331,0.400878,38323.0,38321.0,0.00151913]
[1646696464935,0.19483935,38322.0,38321.0,0.00151913]
[1646696465136,0.59571735,38322.0,38321.0,0.00151913]
[1646696465535,0.19783935,38322.0,38321.0,0.00151913]
[1646696465733,0.59871735,38322.0,38321.0,0.00151913]
[1646696465935,0.19783935,38322.0,38321.0,0.00151913]
[1646696466138,0.59871735,38322.0,38321.0,0.00151913]
[1646696466778,0.59571735,38322.0,38321.0,0.00151913]
[1646696467379,0.62190735,38322.0,38321.0,0.00151913]
[1646696467580,0.67400735,38322.0,38320.0,0.00019222]
[1646696467779,0.67400735,38322.0,38314.0,0.036769]
[1646696467780,1.350878,38321.0,38314.0,0.036]
[1646696467981,0.0521,38320.0,38314.0,0.036]
[1646696468179,0.05320816,38318.0,38314.0,0.03676616]
[1646696468379,0.21965772,38316.0,38314.0,0.03676616]
[1646696468582,0.452978,38315.0,38314.0,0.03676616]
[1646696468979,0.452978,38315.0,38314.0,0.036]
[1646696469580,0.457978,38315.0,38314.0,0.036]
[1646696470829,0.452978,38315.0,38314.0,0.036]
[1646696471029,0.452978,38315.0,38314.0,0.1359]
[1646696471228,0.452978,38315.0,38314.0,0.036]
[1646696471631,0.457978,38315.0,38314.0,0.036]
[1646696472034,0.0571,38315.0,38314.0,0.036]
[1646696472830,0.0521,38315.0,38314.0,0.036]
[1646696474079,0.0521,38315.0,38313.0,0.00019262]
[1646696474879,0.1712121,38320.0,38313.0,0.00019262]
[1646696475078,0.1712121,38320.0,38312.0,0.06528]
[1646696475278,0.4974021,38320.0,38312.0,0.00019151]
[1646696475481,0.4974021,38320.0,38313.0,0.065278]
[1646696475678,0.16671641,38316.0,38313.0,0.065278]
[1646696476480,0.16671641,38316.0,38313.0,0.06546951]
[1646696477482,0.16671641,38316.0,38313.0,0.065278]
[1646696477743,2.95411882,38316.0,38313.0,0.065278]
[1646696478146,0.05578856,38312.0,38310.0,0.180552]
[1646696478350,0.33804043,38312.0,38310.0,0.05]
[1646696478544,0.1,38311.0,38307.0,0.027]
[1646696478743,0.21173245,38310.0,38303.0,0.0999]
[1646696478943,0.21173245,38310.0,38309.0,0.00019159]
[1646696479348,0.3819143,38310.0,38309.0,0.00019159]
[1646696479645,0.3829143,38310.0,38309.0,0.00019159]
[1646696479846,0.3829143,38310.0,38304.0,0.002]
[1646696479847,0.6829143,38310.0,38304.0,0.002]
[1646696480352,0.25077551,38306.0,38304.0,0.002]
[1646696480547,0.10329077,38306.0,38304.0,0.002]
[1646696480945,0.20893288,38303.0,38302.0,0.065296]
[1646696481143,0.20893288,38303.0,38302.0,0.115296]
[1646696481382,0.20893288,38303.0,38302.0,0.065296]
[1646696481789,0.20893288,38303.0,38298.0,0.010451]
[1646696481987,0.20893288,38303.0,38297.0,0.005]
[1646696482782,0.23795571,38300.0,38299.0,0.00020932]
[1646696483085,0.20893288,38303.0,38299.0,0.00020932]
[1646696483482,0.20893288,38303.0,38294.0,0.130607]
[1646696483683,0.20893288,38303.0,38290.0,0.1125]
[1646696483684,0.3,38302.0,38290.0,0.1125]
[1646696483882,0.3,38302.0,38289.0,0.17041711]
[1646696484082,0.1920892,38297.0,38293.0,0.00082654]
[1646696484480,0.1920892,38297.0,38294.0,0.065311]
[1646696485129,0.3,38304.0,38294.0,0.06551762]
[1646696485327,0.4,38306.0,38294.0,0.06551762]
[1646696485524,0.4,38306.0,38294.0,0.11551762]
[1646696485725,0.3,38306.0,38297.0,0.065298]
[1646696485926,0.3521,38308.0,38298.0,0.06529637]
[1646696486125,0.1801418,38307.0,38298.0,0.06529637]
[1646696486527,0.3,38308.0,38299.0,0.21425637]
[1646696486727,0.3,38310.0,38299.0,0.39483737]
[1646696486925,0.1521,38311.0,38299.0,0.39483737]
[1646696487330,0.1521,38311.0,38299.0,0.39463077]
[1646696487525,0.21906983,38308.0,38303.0,0.00018858]
[1646696487726,0.21906983,38308.0,38303.0,0.19605034]
[1646696488226,0.21906983,38308.0,38303.0,0.24605034]
[1646696488625,0.21906983,38308.0,38304.0,0.065288]
[1646696488895,0.21406983,38308.0,38304.0,0.06547658]
[1646696489696,0.5199901,38306.0,38304.0,0.00018858]
[1646696489899,0.5199901,38306.0,38301.0,0.05]
[1646696489900,0.1191121,38306.0,38301.0,0.05]
[1646696490093,0.1191121,38306.0,38304.0,0.00018857]
[1646696491093,0.26037356,38302.0,38295.0,0.065307]
[1646696491395,0.23418356,38302.0,38297.0,0.00083679]
[1646696491993,0.21484503,38301.0,38297.0,0.00083679]
[1646696492192,0.19556201,38300.0,38295.0,0.065307]
[1646696492397,0.19556201,38300.0,38298.0,0.00020918]
[1646696493435,0.19556201,38300.0,38295.0,0.065307]
[1646696493635,0.003,38300.0,38299.0,0.0999]
[1646696493836,0.003,38300.0,38299.0,0.05]
[1646696494238,0.003,38300.0,38297.0,0.00020919]
[1646696494642,0.003,38300.0,38298.0,0.065303]
[1646696494839,0.16146895,38307.0,38298.0,0.065303]
[1646696495042,0.1,38311.0,38300.0,0.06529587]
[1646696495439,0.3682517,38311.0,38300.0,0.06529587]
[1646696495639,0.3682517,38311.0,38303.0,0.065293]
[1646696496041,0.1814175,38309.0,38304.0,0.00020539]
[1646696496981,0.1814175,38309.0,38303.0,0.28085775]
[1646696497181,0.1814175,38309.0,38305.0,0.00020538]
[1646696497584,0.1814175,38309.0,38305.0,0.13077638]
[1646696497781,0.1814175,38309.0,38305.0,0.18077638]
[1646696498180,0.1814175,38309.0,38305.0,0.180571]
[1646696498381,0.1814175,38309.0,38305.0,0.1807803]
[1646696498982,0.1814175,38309.0,38305.0,0.0502093]
[1646696499380,0.1814175,38309.0,38304.0,0.180571]
[1646696499580,0.1814175,38309.0,38305.0,0.0002093]
[1646696499982,0.700878,38308.0,38305.0,0.0002093]
[1646696500537,0.3,38308.0,38305.0,0.0002093]
[1646696500739,0.3,38308.0,38296.0,0.32558836]
[1646696500938,0.3,38308.0,38305.0,0.0002093]
[1646696501137,0.19695986,38306.0,38305.0,0.0002093]
[1646696501539,0.59783786,38306.0,38305.0,0.0002093]
[1646696501739,0.60083786,38306.0,38305.0,0.0002093]
[1646696501938,0.49995986,38306.0,38296.0,0.13060925]
[1646696502138,0.49995986,38306.0,38304.0,0.0001932]
[1646696502340,0.400878,38305.0,38304.0,0.0001932]
[1646696502540,0.19995986,38306.0,38304.0,0.0001932]
[1646696502744,0.003,38306.0,38304.0,0.0001932]
[1646696502941,0.1814175,38309.0,38304.0,0.0001932]
[1646696503141,0.1814175,38309.0,38299.0,0.130591]
[1646696503342,0.1814175,38309.0,38303.0,0.0001932]
[1646696503740,0.3897765,38309.0,38303.0,0.0001932]
[1646696503983,0.4159665,38309.0,38303.0,0.0001932]
[1646696504281,0.3897765,38309.0,38300.0,0.13058126]
[1646696504481,0.3,38308.0,38300.0,0.12818126]
[1646696504681,0.3,38308.0,38304.0,0.0001932]
[1646696504883,0.3897765,38309.0,38304.0,0.0001932]
[1646696505484,0.1814175,38309.0,38304.0,0.0001932]
[1646696505685,0.004,38309.0,38302.0,0.06529187]
[1646696505886,0.004,38309.0,38305.0,0.00018236]
[1646696506685,0.35,38308.0,38304.0,0.17595636]
[1646696507085,0.21414967,38309.0,38304.0,0.17595636]
[1646696507285,0.21414967,38309.0,38305.0,0.00018235]
[1646696507485,0.21414967,38309.0,38305.0,0.06547435]
[1646696507928,0.21414967,38309.0,38305.0,0.06307435]
[1646696508127,0.21414967,38309.0,38304.0,0.128174]
[1646696508527,0.21414967,38309.0,38304.0,0.125774]
[1646696509129,0.21414967,38309.0,38305.0,0.065292]
[1646696509327,0.21014967,38309.0,38305.0,0.065292]
[1646696510133,0.05578856,38312.0,38305.0,0.065292]
[1646696510334,0.05578856,38312.0,38306.0,0.06528344]
[1646696510534,0.05578856,38312.0,38307.0,0.065283]
[1646696510930,0.05578856,38312.0,38311.0,0.0999]
[1646696511129,0.05578856,38312.0,38304.0,0.36020027]
[1646696511785,0.05578856,38312.0,38311.0,0.0999]
[1646696512186,0.05578856,38312.0,38310.0,0.065282]
[1646696513786,0.05878856,38312.0,38310.0,0.065282]
[1646696514185,0.05878856,38312.0,38310.0,0.062882]
[1646696514387,0.05878856,38312.0,38307.0,0.05]
[1646696514589,0.05878856,38312.0,38305.0,0.052]
[1646696514787,0.05878856,38312.0,38305.0,0.002]
[1646696514986,0.05578856,38312.0,38303.0,0.00019715]
[1646696515234,0.19491493,38304.0,38302.0,0.31028136]
[1646696515437,0.05847159,38304.0,38303.0,0.00019714]
[1646696516636,0.05847159,38304.0,38302.0,0.00019714]
[1646696516837,0.35778856,38312.0,38302.0,0.00019714]
[1646696517137,0.35778856,38312.0,38304.0,0.065293]
[1646696517138,0.35578856,38312.0,38304.0,0.065293]
[1646696517335,0.05578856,38312.0,38304.0,0.065293]
[1646696517936,0.21895437,38306.0,38304.0,0.065293]
[1646696518536,0.21895437,38306.0,38303.0,0.0001909]
[1646696518981,0.21895437,38306.0,38301.0,0.38846336]
[1646696519381,0.21895437,38306.0,38303.0,0.00019089]
[1646696519785,0.400878,38305.0,38303.0,0.00019089]
[1646696520083,0.3,38304.0,38298.0,0.34087336]
[1646696520685,0.1740852,38300.0,38298.0,0.34087336]
[1646696521383,0.1740852,38300.0,38298.0,0.38847336]
[1646696521986,0.1740852,38300.0,38298.0,0.26028136]
[1646696522187,0.1740852,38300.0,38298.0,0.05]
[1646696522388,0.1740852,38300.0,38298.0,0.25788136]
[1646696523129,0.1740852,38300.0,38298.0,0.0476]
[1646696523331,0.1740852,38300.0,38297.0,0.20788136]
[1646696523729,0.47847285,38303.0,38297.0,0.20788136]
[1646696523730,0.2689085,38303.0,38297.0,0.20788136]
[1646696523931,0.07829,38307.0,38298.0,0.065303]
[1646696524134,0.1146,38309.0,38298.0,0.062903]
[1646696524330,0.1146,38309.0,38298.0,0.3254864]
[1646696524532,0.32064676,38312.0,38300.0,0.06529043]
[1646696524533,0.5506,38311.0,38300.0,0.06529043]
[1646696524733,0.19950581,38308.0,38302.0,0.130574]
[1646696524930,0.19950581,38308.0,38303.0,0.065287]
[1646696525134,0.19950581,38308.0,38303.0,0.062887]
[1646696525532,0.19950581,38308.0,38303.0,0.0630897]
[1646696525732,0.20150581,38308.0,38303.0,0.0630897]
[1646696525933,0.20150581,38308.0,38303.0,0.0606897]
[1646696526383,0.20150581,38308.0,38304.0,0.06529145]
[1646696526687,0.20150581,38308.0,38304.0,0.06289145]
[1646696527582,0.20150581,38308.0,38304.0,0.06049145]
[1646696527782,0.20450581,38308.0,38304.0,0.06049145]
[1646696527982,0.20250581,38308.0,38304.0,0.06049145]
[1646696528582,0.20250581,38308.0,38307.0,0.0999]
[1646696528790,0.20250581,38308.0,38307.0,0.1499]
[1646696529184,0.19950581,38308.0,38304.0,0.06049145]
[1646696529786,0.20250581,38308.0,38304.0,0.06049145]
[1646696529986,0.20250581,38308.0,38304.0,0.05809145]
[1646696530837,0.20250581,38308.0,38307.0,0.0975]
[1646696531035,0.20250581,38308.0,38307.0,0.1475]
[1646696531341,0.19950581,38308.0,38307.0,0.1475]
[1646696531935,0.19950581,38308.0,38307.0,0.0476]
[1646696532134,0.19950581,38308.0,38304.0,0.05809145]
[1646696532336,0.19950581,38308.0,38307.0,0.0975]
[1646696533337,0.19950581,38308.0,38304.0,0.05809145]
[1646696534887,0.19450581,38308.0,38304.0,0.05809145]
[1646696536392,0.56830012,38312.0,38304.0,0.05809145]
[1646696536393,0.21251156,38311.0,38304.0,0.05809145]
[1646696536595,0.05578856,38312.0,38304.0,0.05809145]
[1646696536596,0.05578856,38312.0,38304.0,0.26827833]
[1646696536793,0.05578856,38312.0,38307.0,0.16283302]
[1646696536990,0.05578856,38312.0,38307.0,0.4730199]
[1646696537656,0.05578856,38312.0,38307.0,0.6664269]
[1646696537853,0.05578856,38312.0,38308.0,0.21018688]
[1646696538053,0.05578856,38312.0,38309.0,0.065264]
[1646696538656,0.05578856,38312.0,38311.0,0.0975]
[1646696539054,0.05578856,38312.0,38311.0,0.1475]
[1646696539257,0.05578856,38312.0,38311.0,0.05]
[1646696540260,0.05578856,38312.0,38311.0,0.0476]
[1646696540456,0.35578856,38312.0,38311.0,0.0476]
[1646696540655,0.35578856,38312.0,38306.0,0.130568]
[1646696540855,0.05578856,38312.0,38306.0,0.130568]
[1646696541059,0.16591194,38310.0,38306.0,0.130568]
[1646696541257,0.16422375,38308.0,38306.0,0.130568]
[1646696541487,0.16422375,38308.0,38307.0,0.06288858]